[Event "Fagernes Chess GM-Swiss 2024"]
[Site "Fagernes"]
[Date "2024.03.27"]
[Round "5.41"]
[White "Evenshaug, Amadeus Hestvik"]
[Black "Brattgjerd, Isak Vinh"]
[Result "0-1"]
[ECO "B15"]
[WhiteElo "2035"]
[BlackElo "2228"]
[Annotator "RC"]
[PlyCount "82"]
[EventDate "2024.03.25"]
[EventType "swiss"]
[EventCountry "NOR"]
[SourceTitle "playchess.com"]
[Source "ChessBase"]
[SourceQuality "1"]
[TimeControl "40/6000+30:2400+30"]

1. e4 {[%emt 0:00:04]} c6 {[%emt 0:00:03]} 2. d4 {[%emt 0:00:12]} d5 {[%emt 0:00:04]} 3. Nc3 {[%emt 0:00:23]} dxe4 {[%emt 0:00:06]} 4. Nxe4 {[%emt 0:00:07]} Nf6 {[%emt 0:00:04]} 5. Nxf6+ {[%emt 0:00:13]} exf6 {[%emt 0:00:04]} 6. Bc4 {[%emt 0:00:44]} Na6 {[%emt 0:00:41]} 7. Ne2 {[%emt 0:03:07]} Nc7 {[%emt 0:00:23]} 8. O-O {[%emt 0:00:29]} Bd6 {[%emt 0:00:04]} 9. Bf4 {[%emt 0:01:45]} O-O {[%emt 0:00:52]} 10. c3 {[%emt 0:03:37]} Bxf4 {[%emt 0:22:31]} 11. Nxf4 {[%emt 0:00:28]} Qd6 {[%emt 0:00:36]} 12. g3 {[%emt 0:05:02]} b5 {[%emt 0:07:01]} 13. Be2 {[%emt 0:06:56]} a5 {[%emt 0:08:33]} 14. Bf3 {[%emt 0:03:05]} Ne6 {[%emt 0:02:26]} 15. Nxe6 {[%emt 0:02:24]} Bxe6 {[%emt 0:00:05]} 16. Re1 {[%emt 0:04:24]} Rab8 {[%emt 0:03:16]} 17. Qd3 {[%emt 0:11:04]} Rfd8 {[%emt 0:04:50]} 18. Red1 {[%emt 0:03:03]} g6 {[%emt 0:01:03]} 19. Kg2 {[%emt 0:06:34]} Kg7 {[%emt 0:00:32]} 20. h4 {[%emt 0:01:01]} h5 {[%emt 0:00:12]} 21. Qe4 {[%emt 0:03:12]} Rbc8 {[%emt 0:02:30]} 22. Qe2 {[%emt 0:01:16]} Re8 {[%emt 0:02:12]} 23. Qd3 {[%emt 0:01:48]} Bc4 {[%emt 0:01:26]} 24. Qd2 {[%emt 0:01:09]} Rcd8 {[%emt 0:02:05]} 25. b3 {[%emt 0:03:20]} Bd5 {[%emt 0:01:33]} 26. Qd3 {[%emt 0:00:34]} f5 {[%emt 0:13:34]} 27. Rd2 {[%emt 0:22:46]} c5 {[%emt 0:10:46]} 28. Bxd5 {[%emt 0:00:31]} Qxd5+ {[%emt 0:00:03]} 29. Qf3 {[%emt 0:01:09]} Re4 {[%emt 0:00:06]} 30. Rad1 {[%emt 0:00:49]} c4 {[%emt 0:00:39]} 31. Rb1 {[%emt 0:02:08]} Rde8 {[%emt 0:18:20]} 32. b4 {[%emt 0:02:22]} a4 {[%emt 0:00:23]} 33. a3 {[%emt 0:00:49]} Qd6 {[%emt 0:00:49]} 34. Rbd1 {[%emt 0:01:32]} f4 {[%emt 0:06:36]} 35. d5 {[%emt 0:02:04]} fxg3 {[%emt 0:00:42]} 36. fxg3 {[%emt 0:00:13]} R8e5 {[%emt 0:01:07]} 37. Rf1 {[%emt 0:02:02]} f5 {[%emt 0:00:28]} 38. Kh3 {[%emt 0:02:43]} Rxd5 {[%emt 0:00:50]} 39. Rxd5 {[%emt 0:01:30]} Qxd5 {[%emt 0:00:02]} 40. Rd1 {[%emt 0:00:11]} Rxh4+ {[%emt 0:00:09]} 41. Kxh4 {[%emt 0:40:08]} Qxf3 {[%emt 0:40:08]} 0-1

[Event "Fagernes Chess GM-Swiss 2024"]
[Site "Fagernes"]
[Date "2024.03.27"]
[Round "5.42"]
[White "Myagmarsuren, Evsuld"]
[Black "Makka, Ioulia"]
[Result "1-0"]
[ECO "B10"]
[WhiteElo "2138"]
[BlackElo "1983"]
[Annotator "RC"]
[PlyCount "79"]
[EventDate "2024.03.25"]
[EventType "swiss"]
[EventCountry "NOR"]
[SourceTitle "playchess.com"]
[Source "ChessBase"]
[SourceQuality "1"]
[TimeControl "40/6000+30:2400+30"]

1. e4 {[%emt 0:00:15]} c6 {[%emt 0:00:39]} 2. c4 {[%emt 0:01:05]} d5 {[%emt 0:00:09]} 3. exd5 {[%emt 0:00:04]} cxd5 {[%emt 0:00:07]} 4. cxd5 {[%emt 0:00:03]} Nf6 {[%emt 0:00:07]} 5. Nc3 {[%emt 0:00:03]} g6 {[%emt 0:01:24]} 6. Bc4 {[%emt 0:00:06]} Bg7 {[%emt 0:01:57]} 7. d3 {[%emt 0:00:04]} a6 {[%emt 0:01:29]} 8. a4 {[%emt 0:00:26]} b6 {[%emt 0:00:43]} 9. Nge2 {[%emt 0:02:27]} Bb7 {[%emt 0:01:30]} 10. Qb3 {[%emt 0:00:30]} O-O {[%emt 0:01:13]} 11. O-O {[%emt 0:00:09]} Nbd7 {[%emt 0:03:31]} 12. Be3 {[%emt 0:01:35]} Rc8 {[%emt 0:01:21]} 13. h3 {[%emt 0:01:58]} Ne8 {[%emt 0:20:38]} 14. Ng3 {[%emt 0:02:42]} Nd6 {[%emt 0:03:16]} 15. Nge4 {[%emt 0:00:26]} h6 {[%emt 0:04:21]} 16. Nxd6 {[%emt 0:03:53]} exd6 {[%emt 0:00:07]} 17. Ne4 {[%emt 0:00:08]} Nc5 {[%emt 0:09:43]} 18. Nxc5 {[%emt 0:01:16]} dxc5 {[%emt 0:00:12]} 19. Rad1 {[%emt 0:01:48]} Qc7 {[%emt 0:02:21]} 20. f4 {[%emt 0:02:10]} Kh7 {[%emt 0:29:49]} 21. f5 {[%emt 0:01:31]} Be5 {[%emt 0:07:49]} 22. d6 {[%emt 0:03:23]} Bxd6 {[%emt 0:01:22]} 23. d4 {[%emt 0:12:33]} cxd4 {[%emt 0:06:36]} 24. Rxd4 {[%emt 0:00:06]} Bc5 {[%emt 0:00:55]} 25. Bxf7 {[%emt 0:14:03]} Qxf7 {[%emt 0:05:38]} 26. fxg6+ {[%emt 0:00:08]} Qxg6 {[%emt 0:00:20]} 27. Rd7+ {[%emt 0:00:13]} Kh8 {[%emt 0:00:31]} 28. Rxf8+ {[%emt 0:01:04]} Bxf8 {[%emt 0:02:24]} 29. Bd4+ {[%emt 0:00:13]} Bg7 {[%emt 0:02:29]} 30. Bxg7+ {[%emt 0:00:05]} Qxg7 {[%emt 0:00:52]} 31. Rxg7 {[%emt 0:00:07]} Kxg7 {[%emt 0:00:05]} 32. Qg3+ {[%emt 0:00:27]} Kh7 {[%emt 0:01:41]} 33. Qd3+ {[%emt 0:00:05]} Kh8 {[%emt 0:00:55]} 34. Qd4+ {[%emt 0:00:07]} Kg8 {[%emt 0:00:20]} 35. Qg4+ {[%emt 0:00:05]} Kh8 {[%emt 0:00:25]} 36. Qd4+ {[%emt 0:00:15]} Kg8 {[%emt 0:00:14]} 37. Qxb6 {[%emt 0:00:04]} Bd5 {[%emt 0:01:02]} 38. Qg6+ {[%emt 0:00:07]} Kh8 {[%emt 0:00:24]} 39. Qxh6+ {[%emt 0:00:05]} Kg8 {[%emt 0:00:08]} 40. Qg5+ {[%emt 0:00:04]} 1-0

[Event "Fagernes Chess GM-Swiss 2024"]
[Site "Fagernes"]
[Date "2024.03.27"]
[Round "5.43"]
[White "Joel Paul Ganta"]
[Black "Mihajlov, Svetoslav"]
[Result "1/2-1/2"]
[ECO "A57"]
[WhiteElo "1993"]
[BlackElo "2094"]
[Annotator "ChessBase"]
[PlyCount "238"]
[EventDate "2024.03.25"]
[EventType "swiss"]
[EventCountry "NOR"]
[SourceTitle "playchess.com"]
[Source "ChessBase"]
[SourceQuality "1"]
[TimeControl "40/6000+30:2400+30"]

1. d4 {[%emt 0:00:11]} Nf6 {[%emt 0:00:08]} 2. c4 {[%emt 0:00:06]} c5 {[%emt 0:00:49]} 3. d5 {[%emt 0:00:08]} b5 {[%emt 0:00:25]} 4. Qc2 {[%emt 0:02:25]} d6 {[%emt 0:00:38]} 5. e4 {[%emt 0:00:09]} bxc4 {[%emt 0:04:08]} 6. Bxc4 {[%emt 0:00:26]} g6 {[%emt 0:00:40]} 7. h3 {[%emt 0:01:09]} Bg7 {[%emt 0:00:59]} 8. Nf3 {[%emt 0:00:03]} Nfd7 {[%emt 0:00:25]} 9. O-O {[%emt 0:00:08]} O-O {[%emt 0:00:05]} 10. Re1 {[%emt 0:02:05]} Nb6 {[%emt 0:01:55]} 11. Nbd2 {[%emt 0:04:16]} e6 {[%emt 0:02:41]} 12. dxe6 {[%emt 0:02:37]} fxe6 {[%emt 0:00:13]} 13. e5 {[%emt 0:00:41]} d5 {[%emt 0:00:30]} 14. Bf1 {[%emt 0:00:53]} N6d7 {[%emt 0:05:28]} 15. b3 {[%emt 0:00:41]} Nc6 {[%emt 0:00:38]} 16. Bb2 {[%emt 0:01:17]} a5 {[%emt 0:27:08]} 17. a3 {[%emt 0:06:24]} Rb8 {[%emt 0:00:17]} 18. Bd3 {[%emt 0:02:05]} Qe8 {[%emt 0:10:33]} 19. Re2 {[%emt 0:01:55]} a4 {[%emt 0:03:55]} 20. bxa4 {[%emt 0:01:58]} c4 {[%emt 0:01:29]} 21. Nxc4 {[%emt 0:02:12]} dxc4 {[%emt 0:00:08]} 22. Bxc4 {[%emt 0:00:02]} Nb6 {[%emt 0:01:08]} 23. Bb5 {[%emt 0:01:41]} Bd7 {[%emt 0:00:10]} 24. Rd1 {[%emt 0:00:01]} Rc8 {[%emt 0:19:19]} 25. Qe4 {[%emt 0:10:11]} Nd5 {[%emt 0:00:44]} 26. Red2 {[%emt 0:01:26]} Nce7 {[%emt 0:01:15]} 27. Ng5 {[%emt 0:02:22]} Bxb5 {[%emt 0:11:21]} 28. axb5 {[%emt 0:00:52]} Bh6 {[%emt 0:00:51]} 29. Nxe6 {[%emt 0:01:28]} Bxd2 {[%emt 0:00:06]} 30. Nxf8 {[%emt 0:00:04]} Qxb5 {[%emt 0:02:15]} 31. Rxd2 {[%emt 0:04:54]} Rxf8 {[%emt 0:00:10]} 32. e6 {[%emt 0:18:55]} Nf6 {[%emt 0:00:06]} 33. Qe5 {[%emt 0:05:14]} Qxe5 {[%emt 0:00:25]} 34. Bxe5 {[%emt 0:00:02]} Nfd5 {[%emt 0:00:14]} 35. Rb2 {[%emt 0:03:34]} Nc6 {[%emt 0:00:17]} 36. Bd6 {[%emt 0:01:16]} Re8 {[%emt 0:00:14]} 37. Rc2 {[%emt 0:00:45]} Nd4 {[%emt 0:05:39]} 38. Rc5 {[%emt 0:01:36]} Nb6 {[%emt 0:02:53]} 39. e7 {[%emt 0:10:02]} Nf5 {[%emt 0:00:54]} 40. Bc7 {[%emt 0:00:13]} Nc8 {[%emt 0:01:26]} 41. a4 {[%emt 0:40:38]} Rxe7 {[%emt 0:45:14]} 42. g4 {[%emt 0:01:24]} Re1+ {[%emt 0:00:36]} 43. Kg2 {[%emt 0:00:09]} Nfe7 {[%emt 0:01:07]} 44. Be5 {[%emt 0:00:41]} Re4 {[%emt 0:00:21]} 45. a5 {[%emt 0:00:09]} Ra4 {[%emt 0:00:06]} 46. f4 {[%emt 0:01:22]} Na7 {[%emt 0:00:00]} 47. h4 {[%emt 0:00:00]} Nac6 {[%emt 0:00:00]} 48. Bc7 {[%emt 0:00:00]} Kf7 {[%emt 0:00:00]} 49. Kf3 {[%emt 0:00:00]} Nd4+ {[%emt 0:00:00]} 50. Kg2 {[%emt 0:00:00]} Ne6 {[%emt 0:00:00]} 51. Rc2 {[%emt 0:00:00]} Nxc7 {[%emt 0:00:00]} 52. Rxc7 {[%emt 0:00:00]} Rxa5 {[%emt 0:00:00]} 53. Rb7 {[%emt 0:00:00]} Ra2+ {[%emt 0:00:00]} 54. Kf3 {[%emt 0:00:00]} Ra3+ {[%emt 0:00:00]} 55. Ke4 {[%emt 0:00:00]} Rh3 {[%emt 0:00:00]} 56. h5 {[%emt 0:00:00]} gxh5 {[%emt 0:00:00]} 57. g5 {[%emt 0:00:00]} Ra3 {[%emt 0:00:00]} 58. f5 {[%emt 0:00:00]} Ra4+ {[%emt 0:00:00]} 59. Kf3 {[%emt 0:00:00]} Kf8 {[%emt 0:00:00]} 60. Rb8+ {[%emt 0:00:00]} Kf7 {[%emt 0:00:00]} 61. Rb7 {[%emt 0:00:00]} Ke8 {[%emt 0:00:00]} 62. Rb8+ {[%emt 0:00:00]} Kd7 {[%emt 0:00:00]} 63. Rh8 {[%emt 0:00:00]} Nxf5 {[%emt 0:04:56]} 64. Rxh7+ {[%emt 0:00:00]} Ke6 {[%emt 0:00:04]} 65. Rxh5 {[%emt 0:00:00]} Nh4+ {[%emt 0:00:13]} 66. Ke2 {[%emt 0:00:00]} Ng6 {[%emt 0:00:04]} 67. Rh7 {[%emt 0:00:00]} Kf5 {[%emt 0:00:07]} 68. Rf7+ {[%emt 0:00:00]} Kxg5 {[%emt 0:00:07]} 69. Rg7 {[%emt 0:00:00]} Kf5 {[%emt 0:00:11]} 70. Rg8 {[%emt 0:00:00]} Ne5 {[%emt 0:00:22]} 71. Ke3 {[%emt 0:00:00]} Re4+ {[%emt 0:01:48]} 72. Kd2 {[%emt 0:00:00]} Rd4+ {[%emt 0:00:32]} 73. Ke3 {[%emt 0:00:00]} Rd3+ {[%emt 0:00:06]} 74. Ke2 {[%emt 0:00:00]} Ke4 {[%emt 0:00:12]} 75. Re8 {[%emt 0:00:00]} Rd7 {[%emt 0:00:57]} 76. Ra8 {[%emt 0:00:00]} Nc4 {[%emt 0:00:17]} 77. Re8+ {[%emt 0:00:00]} Ne5 {[%emt 0:00:13]} 78. Ra8 {[%emt 0:00:00]} Kd4 {[%emt 0:00:52]} 79. Rh8 {[%emt 0:00:00]} Ra7 {[%emt 0:00:56]} 80. Rh4+ {[%emt 0:00:09]} Kd5 {[%emt 0:00:07]} 81. Rh5 {[%emt 0:00:49]} Ra4 {[%emt 0:00:18]} 82. Rh8 {[%emt 0:00:05]} Re4+ {[%emt 0:00:10]} 83. Kf2 {[%emt 0:00:52]} Rf4+ {[%emt 0:00:25]} 84. Ke3 {[%emt 0:00:08]} Rf3+ {[%emt 0:00:05]} 85. Ke2 {[%emt 0:00:06]} Ra3 {[%emt 0:00:08]} 86. Rh5 {[%emt 0:00:54]} Ke4 {[%emt 0:00:59]} 87. Rh4+ {[%emt 0:00:01]} Kf5 {[%emt 0:00:08]} 88. Rb4 {[%emt 0:00:03]} Nc6 {[%emt 0:00:14]} 89. Rc4 {[%emt 0:00:34]} Ra2+ {[%emt 0:00:15]} 90. Ke3 {[%emt 0:00:12]} Ne5 {[%emt 0:00:10]} 91. Rb4 {[%emt 0:00:18]} Ra3+ {[%emt 0:00:43]} 92. Ke2 {[%emt 0:00:12]} Nf3 {[%emt 0:00:17]} 93. Rb8 {[%emt 0:03:59]} Ke4 {[%emt 0:00:18]} 94. Re8+ {[%emt 0:00:02]} Ne5 {[%emt 0:00:09]} 95. Kd2 {[%emt 0:00:02]} Rh3 {[%emt 0:00:26]} 96. Kc2 {[%emt 0:00:28]} Rh7 {[%emt 0:01:16]} 97. Kd2 {[%emt 0:01:17]} Rd7+ {[%emt 0:00:10]} 98. Ke2 {[%emt 0:00:06]} Rd4 {[%emt 0:00:09]} 99. Rh8 {[%emt 0:00:20]} Kf4 {[%emt 0:00:47]} 100. Rf8+ {[%emt 0:00:12]} Ke4 {[%emt 0:00:54]} 101. Rh8 {[%emt 0:00:04]} Ng6 {[%emt 0:00:13]} 102. Re8+ {[%emt 0:00:52]} Kf5 {[%emt 0:00:42]} 103. Ke3 {[%emt 0:00:52]} Rh4 {[%emt 0:01:05]} 104. Ra8 {[%emt 0:00:07]} Re4+ {[%emt 0:00:12]} 105. Kd3 {[%emt 0:00:21]} Ne5+ {[%emt 0:00:06]} 106. Kd2 {[%emt 0:00:25]} Rd4+ {[%emt 0:00:21]} 107. Ke3 {[%emt 0:00:13]} Rd3+ {[%emt 0:00:24]} 108. Ke2 {[%emt 0:00:10]} Kf4 {[%emt 0:00:37]} 109. Ra4+ {[%emt 0:00:05]} Kf5 {[%emt 0:00:12]} 110. Ra5 {[%emt 0:00:50]} Rh3 {[%emt 0:00:57]} 111. Ra4 {[%emt 0:00:15]} Rb3 {[%emt 0:01:03]} 112. Ra8 {[%emt 0:00:06]} Nc4 {[%emt 0:00:14]} 113. Rf8+ {[%emt 0:00:08]} Ke4 {[%emt 0:00:07]} 114. Kf2 {[%emt 0:00:35]} Rb2+ {[%emt 0:00:10]} 115. Kg3 {[%emt 0:00:08]} Ne5 {[%emt 0:00:06]} 116. Rf4+ {[%emt 0:00:57]} Ke3 {[%emt 0:00:08]} 117. Ra4 {[%emt 0:00:07]} Rb8 {[%emt 0:00:09]} 118. Ra3+ {[%emt 0:00:07]} Nd3 {[%emt 0:00:05]} 119. Kg4 {[%emt 0:00:09]} Rb4+ {[%emt 0:00:09]} 1/2-1/2

[Event "Fagernes Chess GM-Swiss 2024"]
[Site "Fagernes"]
[Date "2024.03.27"]
[Round "5.44"]
[White "Havik, Victor"]
[Black "Stai, Sondre"]
[Result "1/2-1/2"]
[ECO "D92"]
[WhiteElo "2078"]
[BlackElo "1842"]
[Annotator "RC"]
[PlyCount "60"]
[EventDate "2024.03.25"]
[EventType "swiss"]
[EventCountry "NOR"]
[SourceTitle "playchess.com"]
[Source "ChessBase"]
[SourceQuality "1"]
[TimeControl "40/6000+30:2400+30"]

1. d4 {[%emt 0:00:04]} Nf6 {[%emt 0:00:15]} 2. c4 {[%emt 0:00:07]} g6 {[%emt 0:00:14]} 3. Nc3 {[%emt 0:00:09]} d5 {[%emt 0:00:33]} 4. Nf3 {[%emt 0:00:19]} Bg7 {[%emt 0:01:00]} 5. Bf4 {[%emt 0:00:08]} O-O {[%emt 0:05:36]} 6. Rc1 {[%emt 0:00:49]} c5 {[%emt 0:08:17]} 7. dxc5 {[%emt 0:02:18]} Qa5 {[%emt 0:04:26]} 8. cxd5 {[%emt 0:02:38]} Rd8 {[%emt 0:06:55]} 9. Bd2 {[%emt 0:02:42]} Qxc5 {[%emt 0:01:10]} 10. e4 {[%emt 0:00:28]} e6 {[%emt 0:11:57]} 11. Bd3 {[%emt 0:05:45]} exd5 {[%emt 0:04:47]} 12. Nxd5 {[%emt 0:02:12]} Qd6 {[%emt 0:02:02]} 13. Bb4 {[%emt 0:06:29]} Qe6 {[%emt 0:08:52]} 14. Ne7+ {[%emt 0:14:00]} Kh8 {[%emt 0:01:51]} 15. Ng5 {[%emt 0:10:09]} Qxa2 {[%emt 0:02:14]} 16. Ra1 {[%emt 0:25:43]} Rxd3 {[%emt 0:01:28]} 17. Rxa2 {[%emt 0:01:28]} Rxd1+ {[%emt 0:00:06]} 18. Kxd1 {[%emt 0:00:16]} Be6 {[%emt 0:00:16]} 19. Nxe6 {[%emt 0:23:18]} fxe6 {[%emt 0:02:36]} 20. f3 {[%emt 0:00:10]} Nbd7 {[%emt 0:02:15]} 21. Ke2 {[%emt 0:01:17]} Bf8 {[%emt 0:02:00]} 22. Rc1 {[%emt 0:00:56]} Re8 {[%emt 0:21:15]} 23. e5 {[%emt 0:03:33]} Nxe5 {[%emt 0:02:47]} 24. Rc7 {[%emt 0:00:10]} Ned7 {[%emt 0:00:50]} 25. Bc3 {[%emt 0:01:51]} Rxe7 {[%emt 0:03:35]} 26. Rxd7 {[%emt 0:00:07]} Rxd7 {[%emt 0:00:35]} 27. Bxf6+ {[%emt 0:00:02]} Bg7 {[%emt 0:01:27]} 28. Bxg7+ {[%emt 0:00:06]} Kxg7 {[%emt 0:00:07]} 29. Rxa7 {[%emt 0:00:05]} Kf6 {[%emt 0:00:47]} 30. Ra5 {[%emt 0:02:45]} Rc7 {[%emt 0:02:04]} 1/2-1/2

[Event "Fagernes Chess GM-Swiss 2024"]
[Site "Fagernes"]
[Date "2024.03.27"]
[Round "5.45"]
[White "Zheng, Harry Z"]
[Black "Elsness, Fredrik Valstad"]
[Result "1-0"]
[ECO "B12"]
[WhiteElo "2077"]
[BlackElo "1873"]
[Annotator "RC"]
[PlyCount "93"]
[EventDate "2024.03.25"]
[EventType "swiss"]
[EventCountry "NOR"]
[SourceTitle "playchess.com"]
[Source "ChessBase"]
[SourceQuality "1"]
[TimeControl "40/6000+30:2400+30"]

1. e4 {[%emt 0:00:03]} c6 {[%emt 0:01:44]} 2. d4 {[%emt 0:00:13]} d5 {[%emt 0:00:05]} 3. e5 {[%emt 0:00:12]} c5 {[%emt 0:00:08]} 4. dxc5 {[%emt 0:00:19]} e6 {[%emt 0:00:06]} 5. a3 {[%emt 0:00:25]} Bxc5 {[%emt 0:00:08]} 6. b4 {[%emt 0:00:09]} Be7 {[%emt 0:00:06]} 7. Nf3 {[%emt 0:00:33]} f6 {[%emt 0:00:08]} 8. Bb2 {[%emt 0:01:02]} Nh6 {[%emt 0:01:41]} 9. Bd3 {[%emt 0:06:22]} a5 {[%emt 0:00:15]} 10. b5 {[%emt 0:00:44]} Nd7 {[%emt 0:00:13]} 11. Nbd2 {[%emt 0:00:32]} Nf7 {[%emt 0:01:40]} 12. exf6 {[%emt 0:00:18]} Bxf6 {[%emt 0:01:10]} 13. Bxf6 {[%emt 0:00:34]} Qxf6 {[%emt 0:00:48]} 14. c4 {[%emt 0:00:42]} Nc5 {[%emt 0:01:28]} 15. Bc2 {[%emt 0:05:05]} b6 {[%emt 0:01:29]} 16. O-O {[%emt 0:05:26]} O-O {[%emt 0:01:13]} 17. cxd5 {[%emt 0:04:30]} exd5 {[%emt 0:00:25]} 18. Nb3 {[%emt 0:07:56]} Bg4 {[%emt 0:07:08]} 19. Nxc5 {[%emt 0:16:31]} Bxf3 {[%emt 0:06:05]} 20. Nd7 {[%emt 0:08:42]} Bxd1 {[%emt 0:05:56]} 21. Nxf6+ {[%emt 0:00:12]} gxf6 {[%emt 0:00:08]} 22. Rfxd1 {[%emt 0:01:19]} Rac8 {[%emt 0:16:42]} 23. Bb3 {[%emt 0:02:48]} Rc3 {[%emt 0:03:44]} 24. Bxd5 {[%emt 0:04:21]} Rc5 {[%emt 0:00:26]} 25. a4 {[%emt 0:02:21]} Re8 {[%emt 0:02:25]} 26. Rac1 {[%emt 0:05:17]} Rec8 {[%emt 0:05:50]} 27. Rxc5 {[%emt 0:09:25]} Rxc5 {[%emt 0:00:24]} 28. f4 {[%emt 0:00:19]} Kf8 {[%emt 0:04:08]} 29. Kf2 {[%emt 0:05:17]} Nd6 {[%emt 0:03:26]} 30. g4 {[%emt 0:03:22]} Nc4 {[%emt 0:02:28]} 31. Rc1 {[%emt 0:06:17]} Nb2 {[%emt 0:00:45]} 32. Rxc5 {[%emt 0:00:48]} Nd3+ {[%emt 0:00:08]} 33. Ke3 {[%emt 0:00:32]} Nxc5 {[%emt 0:00:06]} 34. Be4 {[%emt 0:00:39]} Nxa4 {[%emt 0:00:59]} 35. Bxh7 {[%emt 0:00:26]} Nc3 {[%emt 0:08:15]} 36. Bd3 {[%emt 0:01:24]} Nd5+ {[%emt 0:02:07]} 37. Ke4 {[%emt 0:01:42]} Nb4 {[%emt 0:00:23]} 38. Bc4 {[%emt 0:01:54]} a4 {[%emt 0:02:12]} 39. Kd4 {[%emt 0:00:40]} a3 {[%emt 0:00:20]} 40. Kc3 {[%emt 0:00:21]} a2 {[%emt 0:00:06]} 41. Kb2 {[%emt 0:40:10]} Kg7 {[%emt 0:42:35]} 42. h4 {[%emt 0:02:58]} a1=Q+ {[%emt 0:03:11]} 43. Kxa1 {[%emt 0:00:57]} Nc2+ {[%emt 0:00:11]} 44. Kb2 {[%emt 0:02:28]} Ne3 {[%emt 0:00:15]} 45. Be6 {[%emt 0:03:10]} Ng2 {[%emt 0:00:35]} 46. f5 {[%emt 0:00:47]} Nxh4 {[%emt 0:00:14]} 47. Kc3 {[%emt 0:00:45]} 1-0

[Event "Fagernes Chess GM-Swiss 2024"]
[Site "Fagernes"]
[Date "2024.03.27"]
[Round "5.46"]
[White "Kaewpitakkun, Pantham"]
[Black "Lilliehook, Victor"]
[Result "1-0"]
[ECO "B51"]
[WhiteElo "1989"]
[BlackElo "2060"]
[Annotator "RC"]
[PlyCount "123"]
[EventDate "2024.03.25"]
[EventType "swiss"]
[EventCountry "NOR"]
[SourceTitle "playchess.com"]
[Source "ChessBase"]
[SourceQuality "1"]
[TimeControl "40/6000+30:2400+30"]

1. e4 {[%emt 0:00:03]} c5 {[%emt 0:00:06]} 2. Nf3 {[%emt 0:00:05]} Nc6 {[%emt 0:00:06]} 3. Bb5 {[%emt 0:00:04]} d6 {[%emt 0:00:05]} 4. O-O {[%emt 0:00:27]} Bd7 {[%emt 0:00:13]} 5. Re1 {[%emt 0:00:24]} Nf6 {[%emt 0:00:26]} 6. c3 {[%emt 0:00:34]} a6 {[%emt 0:00:14]} 7. Bf1 {[%emt 0:01:17]} Bg4 {[%emt 0:00:21]} 8. h3 {[%emt 0:07:14]} Bxf3 {[%emt 0:00:09]} 9. Qxf3 {[%emt 0:00:19]} g6 {[%emt 0:00:16]} 10. d3 {[%emt 0:03:18]} Bg7 {[%emt 0:00:40]} 11. Nd2 {[%emt 0:03:02]} O-O {[%emt 0:03:58]} 12. Qd1 {[%emt 0:09:29]} Nd7 {[%emt 0:08:09]} 13. Nf3 {[%emt 0:01:22]} b5 {[%emt 0:11:03]} 14. d4 {[%emt 0:05:22]} Qc7 {[%emt 0:09:42]} 15. Be3 {[%emt 0:09:12]} Rfb8 {[%emt 0:05:31]} 16. Rc1 {[%emt 0:00:00]} a5 {[%emt 0:03:10]} 17. Nd2 {[%emt 0:16:56]} e5 {[%emt 0:09:10]} 18. dxc5 {[%emt 0:04:32]} dxc5 {[%emt 0:01:18]} 19. a4 {[%emt 0:01:12]} bxa4 {[%emt 0:17:12]} 20. Nc4 {[%emt 0:04:20]} Bf8 {[%emt 0:02:37]} 21. Qxa4 {[%emt 0:02:44]} Nb6 {[%emt 0:02:30]} 22. Qa2 {[%emt 0:04:05]} Nxc4 {[%emt 0:03:23]} 23. Bxc4 {[%emt 0:00:09]} a4 {[%emt 0:01:23]} 24. Bd5 {[%emt 0:01:28]} Ra7 {[%emt 0:04:37]} 25. Rc2 {[%emt 0:03:05]} Qd7 {[%emt 0:06:39]} 26. Rd2 {[%emt 0:10:38]} Qe8 {[%emt 0:07:17]} 27. Bxc6 {[%emt 0:04:24]} Qxc6 {[%emt 0:00:00]} 28. Rd5 {[%emt 0:00:19]} Rab7 {[%emt 0:04:02]} 29. Bc1 {[%emt 0:01:08]} Qe8 {[%emt 0:03:45]} 30. Red1 {[%emt 0:00:23]} Kg7 {[%emt 0:01:14]} 31. Qc4 {[%emt 0:02:30]} Rc7 {[%emt 0:02:52]} 32. f4 {[%emt 0:04:16]} f6 {[%emt 0:00:48]} 33. Qd3 {[%emt 0:02:05]} Rbb7 {[%emt 0:01:32]} 34. fxe5 {[%emt 0:00:48]} fxe5 {[%emt 0:00:01]} 35. Qg3 {[%emt 0:00:21]} Rd7 {[%emt 0:00:01]} 36. Rxd7+ {[%emt 0:02:49]} Rxd7 {[%emt 0:00:01]} 37. Rxd7+ {[%emt 0:00:03]} Qxd7 {[%emt 0:00:02]} 38. Qxe5+ {[%emt 0:00:02]} Kf7 {[%emt 0:01:10]} 39. Qd5+ {[%emt 0:00:40]} Qxd5 {[%emt 0:00:01]} 40. exd5 {[%emt 0:00:02]} Kf6 {[%emt 0:03:07]} 41. Kf2 {[%emt 0:42:14]} Ke5 {[%emt 0:03:20]} 42. c4 {[%emt 0:00:00]} Kd4 {[%emt 0:04:06]} 43. Bf4 {[%emt 0:00:00]} Be7 {[%emt 0:13:21]} 44. Bc7 {[%emt 0:00:00]} Kxc4 {[%emt 0:01:19]} 45. d6 {[%emt 0:00:00]} Bh4+ {[%emt 0:01:00]} 46. g3 {[%emt 0:00:00]} Bf6 {[%emt 0:00:06]} 47. d7 {[%emt 0:00:00]} Kb3 {[%emt 0:00:07]} 48. d8=Q {[%emt 0:00:00]} Bxd8 {[%emt 0:00:03]} 49. Bxd8 {[%emt 0:00:00]} Kxb2 {[%emt 0:00:03]} 50. Ke3 {[%emt 0:00:00]} a3 {[%emt 0:04:31]} 51. Kd3 {[%emt 0:00:00]} a2 {[%emt 0:00:12]} 52. Kc4 {[%emt 0:00:00]} a1=Q {[%emt 0:00:41]} 53. Bf6+ {[%emt 0:00:00]} Ka2 {[%emt 0:00:03]} 54. Bxa1 {[%emt 0:00:00]} Kxa1 {[%emt 0:00:01]} 55. Kxc5 {[%emt 0:00:00]} Kb2 {[%emt 0:00:03]} 56. Kd4 {[%emt 0:00:00]} Kc2 {[%emt 0:00:08]} 57. Ke5 {[%emt 0:00:00]} Kd3 {[%emt 0:00:05]} 58. Kf6 {[%emt 0:00:00]} Ke4 {[%emt 0:00:53]} 59. g4 {[%emt 0:00:00]} Kf4 {[%emt 0:01:02]} 60. g5 {[%emt 0:00:00]} Kg3 {[%emt 0:01:01]} 61. Kg7 {[%emt 0:00:00]} Kh4 {[%emt 0:01:17]} 62. Kh6 {[%emt 0:00:00]} 1-0